fUSD/lending_fUSD_20250616
["ID","MTS","AMOUNT","RATE_DAILY","PERIOD"]
[366052777,1750036243744,-490.0,0.00016438,2]
[366052778,1750036243755,-490.0,0.00016438,2]
[366052779,1750036243765,-1459.43,0.00016438,2]
[366052780,1750036243774,-1756.23,0.00016438,2]
[366052781,1750036243784,-522.0,0.00016438,2]
[366052782,1750036243794,-957.53,0.00016438,2]
[366052783,1750036243804,-490.0,0.00016438,2]
[366052784,1750036243818,-490.0,0.00016438,2]
[366052785,1750036243827,-857.63,0.00016438,2]
[366052786,1750036243837,-490.0,0.00016438,2]
[366052787,1750036243847,-729.6,0.00016438,2]
[366052788,1750036243858,-490.0,0.00016438,2]
[366052789,1750036243867,-1811.21,0.00016438,2]
[366052790,1750036243877,-671.32,0.00016438,2]
[366052791,1750036243887,-490.0,0.00016438,2]
[366052792,1750036243897,-490.0,0.00016438,2]
[366052793,1750036243907,-1283.08,0.00016438,2]
[366052794,1750036243916,-490.0,0.00016438,2]
[366052795,1750036243925,-506.05,0.00016438,2]
[366052796,1750036243935,-1468.1,0.00016438,2]
[366052797,1750036243945,-490.0,0.00016438,2]
[366052798,1750036243955,-823.7,0.00016438,2]
[366052799,1750036243965,-184.37073311,0.00016438,2]
[366052800,1750036243976,-1981.31,0.00016438,2]
[366052801,1750036243985,-490.0,0.00016438,2]
[366052802,1750036243995,-490.0,0.00016438,2]
[366052803,1750036244006,-629.69546421,0.00016438,2]
[366052804,1750036244016,-490.0,0.00016438,2]
[366052805,1750036244025,-269.167472,0.00016438,2]
[366052806,1750036244035,-269.167472,0.00016438,2]
[366052807,1750036244046,-734.2,0.00016438,2]
[366052808,1750036244055,-500.0,0.00016438,2]
[366052809,1750036244065,-457.1824861,0.00016438,2]
[366052810,1750036244075,-500.0,0.00016438,2]
[366052811,1750036244084,-151.0,0.00016438,2]
[366052812,1750036244094,-151.0,0.00016438,2]
[366052813,1750036244105,-182.882834,0.00016438,2]
[366052814,1750036244114,-1758.48,0.00016438,2]
[366052815,1750036244124,-182.882834,0.00016438,2]
[366052816,1750036244133,-490.0,0.00016438,2]
[366052817,1750036244143,-490.0,0.00016438,2]
[366052818,1750036244153,-490.0,0.00016438,2]
[366052819,1750036244163,-490.0,0.00016438,2]
[366052820,1750036244172,-269.167472,0.00016438,2]
[366052821,1750036244182,-269.167472,0.00016438,2]
[366052822,1750036244191,-635.97,0.00016438,2]
[366052823,1750036244200,-872.17,0.00016438,2]
[366052824,1750036244209,-490.0,0.00016438,2]
[366052825,1750036244219,-1973.8,0.00016438,2]
[366052826,1750036244229,-182.882834,0.00016438,2]
[366052827,1750036244238,-490.0,0.00016438,2]
[366052828,1750036244247,-1346.06,0.00016438,2]
[366052829,1750036244258,-182.882834,0.00016438,2]
[366052830,1750036244268,-490.0,0.00016438,2]
[366052831,1750036244277,-490.0,0.00016438,2]
[366052832,1750036244291,-490.0,0.00016438,2]
[366052833,1750036244302,-490.0,0.00016438,2]
[366052834,1750036244311,-490.0,0.00016438,2]
[366052835,1750036244321,-783.79,0.00016438,2]
[366052836,1750036244330,-490.0,0.00016438,2]
[366052837,1750036244340,-842.93,0.00016438,2]
[366052838,1750036244350,-490.0,0.00016438,2]
[366052839,1750036244359,-490.0,0.00016438,2]
[366052840,1750036244369,-490.0,0.00016438,2]
[366052841,1750036244379,-1254.79,0.00016438,2]
[366052842,1750036244388,-804.4,0.00016438,2]
[366052843,1750036244398,-1283.48,0.00016438,2]
[366052844,1750036244407,-369.95882501,0.00016438,2]
[366052845,1750036244417,-969.9,0.00016438,2]
[366052846,1750036244426,-490.0,0.00016438,2]
[366052847,1750036244591,-490.0,0.00016438,2]
[366052848,1750036244602,-1576.52,0.00016438,2]
[366052849,1750036244612,-490.0,0.00016438,2]
[366052850,1750036244622,-490.0,0.00016438,2]
[366052851,1750036244632,-490.0,0.00016438,2]
[366052852,1750036244642,-490.0,0.00016438,2]
[366052853,1750036244652,-780.59,0.00016438,2]
[366052854,1750036244662,-618.09,0.00016438,2]
[366052855,1750036244672,-228.746168,0.00016438,2]
[366052856,1750036244683,-490.0,0.00016438,2]
[366052857,1750036244693,-228.746168,0.00016438,2]
[366052858,1750036244704,-702.0,0.00016438,2]
[366052859,1750036244714,-985.21,0.00016438,2]
[366052860,1750036244724,-674.46,0.00016438,2]
[366052861,1750036244734,-1005.29,0.00016438,2]
[366052862,1750036244744,-490.0,0.00016438,2]
[366052863,1750036244754,-498.88,0.00016438,2]
[366052864,1750036244765,-228.746168,0.00016438,2]
[366052865,1750036244775,-228.746168,0.00016438,2]
[366052866,1750036244786,-807.34,0.00016438,2]
[366052867,1750036244798,-151.0,0.00016438,2]
[366052868,1750036244809,-490.0,0.00016438,2]
[366052869,1750036244822,-256.534013,0.00016438,2]
[366052870,1750036244832,-490.0,0.00016438,2]
[366052871,1750036244843,-786.54,0.00016438,2]
[366052872,1750036244853,-500.0,0.00016438,2]
[366052873,1750036244864,-500.0,0.00016438,2]
[366052874,1750036244874,-500.0,0.00016438,2]
[366052875,1750036244885,-1489.24,0.00016438,2]
[366052876,1750036244897,-500.0,0.00016438,2]
[366052877,1750036244907,-490.0,0.00016438,2]
[366052878,1750036244917,-2219.01,0.00016438,2]
[366052879,1750036244927,-151.0,0.00016438,2]
[366052880,1750036244937,-611.24,0.00016438,2]
[366052881,1750036244947,-490.0,0.00016438,2]
[366052882,1750036244957,-490.0,0.00016438,2]
[366052883,1750036244967,-490.0,0.00016438,2]
[366052884,1750036244978,-490.0,0.00016438,2]
[366052885,1750036244988,-490.0,0.00016438,2]
[366052886,1750036244998,-490.0,0.00016438,2]
[366052887,1750036245008,-785.57,0.00016438,2]
[366052888,1750036245018,-490.0,0.00016438,2]
[366052889,1750036245029,-490.0,0.00016438,2]
[366052890,1750036245038,-490.0,0.00016438,2]
[366052891,1750036245048,-490.0,0.00016438,2]
[366052892,1750036245058,-490.0,0.00016438,2]
[366052893,1750036245068,-490.0,0.00016438,2]
[366052894,1750036245079,-490.0,0.00016438,2]
[366052895,1750036245089,-203.213799,0.00016438,2]
[366052896,1750036245099,-617.45194309,0.00016438,2]
[366052897,1750036245109,-1125.25,0.00016438,2]
[366052898,1750036245119,-522.49,0.00016438,2]
[366052899,1750036245130,-490.0,0.00016438,2]
[366052900,1750036245140,-490.0,0.00016438,2]
[366052901,1750036245151,-490.0,0.00016438,2]
[366052902,1750036245160,-203.213799,0.00016438,2]
[366052903,1750036245170,-971.21,0.00016438,2]
[366052904,1750036245180,-458.07054884,0.00016438,2]
[366052905,1750036245190,-490.0,0.00016438,2]
[366052906,1750036245199,-2147.87,0.00016438,2]
[366052907,1750036245209,-490.0,0.00016438,2]
[366052908,1750036245219,-151.0,0.00016438,2]
[366052909,1750036245228,-151.0,0.00016438,2]
[366052910,1750036245238,-409.28421031,0.00016438,2]
[366052911,1750036245248,-520.52,0.00016438,2]
[366052912,1750036245259,-490.0,0.00016438,2]
[366052913,1750036245269,-1036.33,0.00016438,2]
[366052914,1750036245279,-329.14843639,0.00016438,2]
[366052915,1750036245288,-490.0,0.00016438,2]
[366052916,1750036245298,-490.0,0.00016438,2]
[366052917,1750036245309,-151.0,0.00016438,2]
[366052918,1750036245319,-151.0,0.00016438,2]
[366052919,1750036245328,-490.0,0.00016438,2]
[366052920,1750036245339,-490.0,0.00016438,2]
[366052921,1750036245350,-490.0,0.00016438,2]
[366052922,1750036245359,-490.0,0.00016438,2]
[366052923,1750036245371,-588.38,0.00016438,2]
[366052924,1750036245381,-490.0,0.00016438,2]
[366052925,1750036245391,-1025.9,0.00016438,2]
[366052926,1750036245401,-2673.89,0.00016438,2]
[366052927,1750036245410,-204.362561,0.00016438,2]
[366052928,1750036245421,-490.0,0.00016438,2]
[366052929,1750036245431,-490.0,0.00016438,2]
[366052930,1750036245441,-490.0,0.00016438,2]
[366052931,1750036245451,-490.0,0.00016438,2]
[366052932,1750036245460,-520.63479339,0.00016438,2]
[366052933,1750036245470,-490.0,0.00016438,2]
[366052934,1750036245479,-1419.27,0.00016438,2]
[366052935,1750036245489,-490.0,0.00016438,2]
[366052936,1750036245498,-490.0,0.00016438,2]
[366052937,1750036245508,-490.0,0.00016438,2]
[366052938,1750036245517,-490.0,0.00016438,2]
[366052939,1750036245526,-490.0,0.00016438,2]
[366052940,1750036245536,-490.0,0.00016438,2]
[366052941,1750036245547,-490.0,0.00016438,2]
[366052942,1750036245557,-151.0,0.00016438,2]
[366052943,1750036245566,-490.0,0.00016438,2]
[366052944,1750036245576,-153.185897,0.00016438,2]
[366052945,1750036245587,-977.39,0.00016438,2]
[366052946,1750036245596,-490.0,0.00016438,2]
[366052947,1750036245607,-490.0,0.00016438,2]
[366052948,1750036245616,-1227.23,0.00016438,2]
[366052949,1750036245627,-775.72,0.00016438,2]
[366052950,1750036245636,-490.0,0.00016438,2]
[366052951,1750036245647,-490.0,0.00016438,2]
[366052952,1750036245656,-490.0,0.00016438,2]
[366052953,1750036245666,-2157.17,0.00016438,2]
[366052954,1750036245675,-490.0,0.00016438,2]
[366052955,1750036245685,-519.83,0.00016438,2]
[366052956,1750036245694,-490.0,0.00016438,2]
[366052957,1750036245705,-490.0,0.00016438,2]
[366052958,1750036245715,-1462.22,0.00016438,2]
[366052959,1750036245724,-490.0,0.00016438,2]
[366052960,1750036245734,-1839.13,0.00016438,2]
[366052961,1750036245745,-490.0,0.00016438,2]
[366052962,1750036245756,-490.0,0.00016438,2]
[366052963,1750036245766,-490.0,0.00016438,2]
[366052964,1750036245776,-490.0,0.00016438,2]
[366052965,1750036245785,-490.0,0.00016438,2]
[366052966,1750036245795,-553.51,0.00016438,2]
[366052967,1750036245807,-490.0,0.00016438,2]
[366052968,1750036245821,-490.0,0.00016438,2]
[366052969,1750036245832,-490.0,0.00016438,2]
[366052970,1750036245842,-528.56,0.00016438,2]
[366052971,1750036245852,-1506.3,0.00016438,2]
[366052972,1750036245863,-490.0,0.00016438,2]
[366052973,1750036245873,-490.0,0.00016438,2]
[366052974,1750036245883,-490.0,0.00016438,2]
[366052975,1750036245894,-490.0,0.00016438,2]
[366052976,1750036245904,-764.71,0.00016438,2]
[366052977,1750036245913,-663.36,0.00016438,2]
[366052978,1750036245923,-783.7,0.00016438,2]
[366052979,1750036245933,-490.0,0.00016438,2]
[366052980,1750036245943,-490.0,0.00016438,2]
[366052981,1750036245953,-490.0,0.00016438,2]
[366052982,1750036245962,-490.0,0.00016438,2]
[366052983,1750036245972,-490.0,0.00016438,2]
[366052984,1750036245982,-490.0,0.00016438,2]
[366052985,1750036245992,-490.0,0.00016438,2]
[366052986,1750036246002,-350.65867638,0.00016438,2]
[366052987,1750036246012,-490.0,0.00016438,2]
[366052988,1750036246023,-490.0,0.00016438,2]
[366052989,1750036246032,-490.0,0.00016438,2]
[366052990,1750036246042,-490.0,0.00016438,2]
[366052991,1750036246052,-490.0,0.00016438,2]
[366052993,1750036246062,-490.0,0.00016438,2]
[366052994,1750036246071,-490.0,0.00016438,2]
[366052995,1750036246082,-490.0,0.00016438,2]
[366052996,1750036246092,-1789.34,0.00016438,2]
[366052997,1750036246102,-490.0,0.00016438,2]
[366052998,1750036246112,-2643.03,0.00016438,2]
[366052999,1750036246121,-490.0,0.00016438,2]
[366053000,1750036246131,-490.0,0.00016438,2]
[366053001,1750036246140,-586.4631193,0.00016438,2]
[366053002,1750036246149,-490.0,0.00016438,2]
[366053003,1750036246159,-490.0,0.00016438,2]
[366053004,1750036246168,-490.0,0.00016438,2]
[366053005,1750036246178,-490.0,0.00016438,2]
[366053006,1750036246187,-608.64,0.00016438,2]
[366053007,1750036246196,-490.0,0.00016438,2]
[366053008,1750036246206,-490.0,0.00016438,2]
[366053010,1750036246215,-490.0,0.00016438,2]
[366053012,1750036246224,-2090.9,0.00016438,2]
[366053013,1750036246235,-490.0,0.00016438,2]
[366053014,1750036246244,-612.07,0.00016438,2]
[366053015,1750036246254,-490.0,0.00016438,2]
[366053016,1750036246263,-490.8,0.00016438,2]
[366053017,1750036246273,-490.0,0.00016438,2]
[366053018,1750036246282,-541.0,0.00016438,2]
[366053019,1750036246291,-693.14,0.00016438,2]
[366053020,1750036246301,-490.0,0.00016438,2]
[366053021,1750036246312,-1250.74,0.00016438,2]
[366053022,1750036246321,-744.6,0.00016438,2]
[366053023,1750036246332,-678.34,0.00016438,2]
[366053024,1750036246342,-320.48959936,0.00016438,2]
[366053025,1750036246351,-490.0,0.00016438,2]
[366053026,1750036246361,-490.0,0.00016438,2]
[366053027,1750036246370,-490.0,0.00016438,2]
[366053028,1750036246381,-490.0,0.00016438,2]
[366053029,1750036246394,-729.55,0.00016438,2]
[366053030,1750036246404,-490.0,0.00016438,2]
[366053031,1750036246415,-1394.31,0.00016438,2]
[366053032,1750036246426,-814.02,0.00016438,2]
[366053033,1750036246436,-585.72,0.00016438,2]
[366053034,1750036246447,-1344.3,0.00016438,2]
[366053035,1750036246459,-670.92,0.00016438,2]
[366053036,1750036246470,-490.0,0.00016438,2]
[366053037,1750036246479,-567.84,0.00016438,2]
[366053038,1750036246489,-383.13069651,0.00016438,2]
[366053039,1750036246499,-490.0,0.00016438,2]
[366053040,1750036246508,-580.5,0.00016438,2]
[366053041,1750036246518,-495.46,0.00016438,2]
[366053042,1750036246527,-490.0,0.00016438,2]
[366053043,1750036246537,-490.0,0.00016438,2]
[366053044,1750036246546,-551.22,0.00016438,2]
[366053045,1750036246556,-490.0,0.00016438,2]
[366053046,1750036246566,-490.0,0.00016438,2]
[366053047,1750036246575,-2210.3,0.00016438,2]
[366053048,1750036246585,-490.0,0.00016438,2]
[366053049,1750036246595,-490.0,0.00016438,2]
[366053050,1750036246604,-490.0,0.00016438,2]
[366053051,1750036246615,-626.02,0.00016438,2]
[366053052,1750036246624,-572.93,0.00016438,2]
[366053053,1750036246635,-500.0,0.00016438,2]
[366053054,1750036246645,-500.0,0.00016438,2]
[366053055,1750036246655,-492.58348944,0.00016438,2]
[366053056,1750036246665,-490.0,0.00016438,2]
[366053057,1750036246675,-329.54457443,0.00016438,2]
[366053058,1750036246684,-490.0,0.00016438,2]
[366053059,1750036246695,-490.0,0.00016438,2]
[366053060,1750036246704,-490.0,0.00016438,2]
[366053061,1750036246714,-490.0,0.00016438,2]
[366053062,1750036246723,-658.53,0.00016438,2]
[366053064,1750036246734,-483.06681187,0.00016438,2]
[366053066,1750036246743,-490.0,0.00016438,2]
[366053068,1750036246752,-2424.48,0.00016438,2]
[366053070,1750036246765,-490.0,0.00016438,2]
[366053073,1750036246776,-2438.19,0.00016438,2]
[366053074,1750036246785,-490.0,0.00016438,2]
[366053076,1750036246795,-171.31462844,0.00016438,2]
[366053078,1750036246805,-821.13,0.00016438,2]
[366053080,1750036246817,-513.89,0.00016438,2]
[366053082,1750036246827,-490.0,0.00016438,2]
[366053084,1750036246837,-490.0,0.00016438,2]
[366053086,1750036246847,-490.0,0.00016438,2]
[366053088,1750036246858,-490.0,0.00016438,2]
[366053090,1750036246867,-490.0,0.00016438,2]
[366053092,1750036246877,-429.0913091,0.00016438,2]
[366053093,1750036247246,-490.0,0.00016438,2]
[366053094,1750036247271,-490.0,0.00016438,2]
[366053095,1750036247282,-490.0,0.00016438,2]
[366053096,1750036247293,-490.0,0.00016438,2]
[366053097,1750036247303,-490.0,0.00016438,2]
[366053098,1750036247313,-170.946325,0.00016438,2]
[366053099,1750036247323,-1000.0,0.00016438,2]
[366053100,1750036247335,-170.946325,0.00016438,2]
[366053101,1750036247345,-490.0,0.00016438,2]
[366053102,1750036247355,-602.64,0.00016438,2]
[366053103,1750036247365,-881.28,0.00016438,2]
[366053104,1750036247375,-501.8712627,0.00016438,2]
[366053105,1750036247385,-490.0,0.00016438,2]
[366053106,1750036247395,-551.29,0.00016438,2]
[366053107,1750036247407,-490.0,0.00016438,2]
[366053108,1750036247417,-532.43,0.00016438,2]
[366053109,1750036247428,-490.0,0.00016438,2]
[366053110,1750036247438,-490.0,0.00016438,2]
[366053111,1750036247448,-170.946325,0.00016438,2]
[366053112,1750036247459,-1584.73,0.00016438,2]
[366053113,1750036247469,-490.0,0.00016438,2]
[366053114,1750036247480,-170.946325,0.00016438,2]
[366053115,1750036247491,-490.0,0.00016438,2]
[366053116,1750036247501,-529.03,0.00016438,2]
[366053117,1750036247511,-490.0,0.00016438,2]
[366053118,1750036247522,-458.25576447,0.00016438,2]
[366053119,1750036247533,-490.0,0.00016438,2]
[366053120,1750036247543,-481.72645209,0.00016438,2]
[366053121,1750036247553,-576.13,0.00016438,2]
[366053122,1750036247564,-1706.25,0.00016438,2]
[366053123,1750036247574,-490.0,0.00016438,2]
[366053124,1750036247584,-490.0,0.00016438,2]
[366053125,1750036247594,-490.0,0.00016438,2]
[366053126,1750036247605,-490.0,0.00016438,2]
[366053127,1750036247615,-209.65555912,0.00016438,2]
[366053128,1750036247624,-490.0,0.00016438,2]
[366053129,1750036247634,-540.52,0.00016438,2]
[366053130,1750036247644,-490.0,0.00016438,2]
[366053131,1750036247653,-2222.06,0.00016438,2]
[366053132,1750036247664,-500.0,0.00016438,2]
[366053133,1750036247674,-500.0,0.00016438,2]
[366053134,1750036247684,-500.0,0.00016438,2]
[366053135,1750036247694,-500.0,0.00016438,2]
[366053136,1750036247705,-500.0,0.00016438,2]
[366053137,1750036247715,-490.0,0.00016438,2]
[366053138,1750036247725,-490.0,0.00016438,2]
[366053139,1750036247735,-490.0,0.00016438,2]
[366053140,1750036247745,-1090.75,0.00016438,2]
[366053141,1750036247754,-509.214435,0.00016438,2]
[366053142,1750036247764,-509.214435,0.00016438,2]
[366053143,1750036247774,-1243.24,0.00016438,2]
[366053144,1750036247784,-490.0,0.00016438,2]
[366053145,1750036247794,-577.74,0.00016438,2]
[366053146,1750036247805,-490.0,0.00016438,2]
[366053147,1750036247817,-490.0,0.00016438,2]
[366053148,1750036247828,-582.19794373,0.00016438,2]
[366053149,1750036247838,-723.84,0.00016438,2]
[366053150,1750036247849,-509.214435,0.00016438,2]
[366053151,1750036247859,-1178.87,0.00016438,2]
[366053152,1750036247869,-1605.672843,0.00016438,2]
[366053153,1750036247879,-509.214435,0.00016438,2]
[366053154,1750036247891,-490.0,0.00016438,2]
[366053155,1750036247902,-1605.672843,0.00016438,2]
[366053156,1750036247913,-219.43749144,0.00016438,2]
[366053157,1750036247922,-1605.672843,0.00016438,2]
[366053158,1750036247932,-490.0,0.00016438,2]
[366053159,1750036247942,-1605.672843,0.00016438,2]
[366053160,1750036247952,-490.0,0.00016438,2]
[366053161,1750036247963,-631.59,0.00016438,2]
[366053162,1750036247972,-490.0,0.00016438,2]
[366053163,1750036247982,-1709.71,0.00016438,2]
[366053164,1750036247992,-151.0,0.00016438,2]
[366053165,1750036248002,-776.12,0.00016438,2]
[366053166,1750036248012,-151.0,0.00016438,2]
[366053167,1750036248023,-490.0,0.00016438,2]
[366053168,1750036248033,-490.0,0.00016438,2]
[366053169,1750036248044,-5000.0,0.00016438,2]
[366053170,1750036248054,-490.0,0.00016438,2]
[366053171,1750036248064,-1653.12,0.00016438,2]
[366053172,1750036248074,-490.0,0.00016438,2]
[366053173,1750036248085,-490.0,0.00016438,2]
[366053174,1750036248095,-1678.27,0.00016438,2]
[366053175,1750036248105,-490.0,0.00016438,2]
[366053176,1750036248115,-490.0,0.00016438,2]
[366053177,1750036248125,-490.0,0.00016438,2]
[366053178,1750036248135,-1325.77,0.00016438,2]
[366053179,1750036248146,-758.2,0.00016438,2]
[366053180,1750036248156,-490.0,0.00016438,2]
[366053181,1750036248166,-676.34,0.00016438,2]
[366053182,1750036248176,-500.0,0.00016438,2]
[366053183,1750036248186,-490.0,0.00016438,2]
[366053184,1750036248197,-559.14076901,0.00016438,2]
[366053185,1750036248207,-490.0,0.00016438,2]
[366053186,1750036248217,-490.0,0.00016438,2]
[366053187,1750036248227,-490.0,0.00016438,2]
[366053188,1750036248237,-490.0,0.00016438,2]
[366053189,1750036248247,-490.0,0.00016438,2]
[366053190,1750036248258,-1097.23,0.00016438,2]
[366053191,1750036248269,-490.0,0.00016438,2]
[366053192,1750036248279,-593.12,0.00016438,2]
[366053193,1750036248289,-490.0,0.00016438,2]
[366053194,1750036248300,-490.0,0.00016438,2]
[366053195,1750036248310,-1683.41,0.00016438,2]
[366053196,1750036248320,-490.0,0.00016438,2]
[366053197,1750036248330,-186.842048,0.00016438,2]
[366053198,1750036248340,-186.842048,0.00016438,2]
[366053199,1750036248351,-490.0,0.00016438,2]
[366053200,1750036248361,-1193.21,0.00016438,2]
[366053201,1750036248372,-500.0,0.00016438,2]
[366053202,1750036248381,-490.0,0.00016438,2]
[366053203,1750036248392,-490.0,0.00016438,2]
[366053204,1750036248402,-619.9,0.00016438,2]
[366053205,1750036248412,-826.63,0.00016438,2]
[366053206,1750036248422,-490.0,0.00016438,2]
[366053207,1750036248431,-186.842048,0.00016438,2]
[366053208,1750036248442,-5122.13,0.00016438,2]
[366053209,1750036248452,-186.842048,0.00016438,2]
[366053210,1750036248463,-490.0,0.00016438,2]
[366053211,1750036248473,-490.0,0.00016438,2]
[366053212,1750036248483,-490.0,0.00016438,2]
[366053213,1750036248493,-1251.73,0.00016438,2]
[366053214,1750036248504,-490.0,0.00016438,2]
[366053215,1750036248514,-490.0,0.00016438,2]
[366053216,1750036248525,-490.0,0.00016438,2]
[366053217,1750036248536,-490.0,0.00016438,2]
[366053218,1750036248546,-490.0,0.00016438,2]
[366053219,1750036248556,-1635.43,0.00016438,2]
[366053220,1750036248566,-1434.6,0.00016438,2]
[366053221,1750036248576,-490.0,0.00016438,2]
[366053222,1750036248586,-1396.07,0.00016438,2]
[366053223,1750036248595,-2064.18,0.00016438,2]
[366053224,1750036248605,-3581.1,0.00016438,2]
[366053225,1750036248616,-490.0,0.00016438,2]
[366053226,1750036248625,-490.0,0.00016438,2]
[366053227,1750036248635,-490.0,0.00016438,2]
[366053228,1750036248645,-490.0,0.00016438,2]
[366053229,1750036248655,-490.0,0.00016438,2]
[366053230,1750036248666,-191.23336369,0.00016438,2]
[366053231,1750036248675,-490.0,0.00016438,2]
[366053232,1750036248687,-490.0,0.00016438,2]
[366053233,1750036248696,-490.0,0.00016438,2]
[366053234,1750036248707,-490.0,0.00016438,2]
[366053235,1750036248716,-1832.09,0.00016438,2]
[366053236,1750036248726,-490.0,0.00016438,2]
[366053237,1750036248737,-5852.45,0.00016438,2]
[366053238,1750036248746,-490.0,0.00016438,2]
[366053239,1750036248756,-1183.92,0.00016438,2]
[366053240,1750036248766,-505.02,0.00016438,2]
[366053241,1750036248776,-1658.76,0.00016438,2]
[366053242,1750036248786,-2115.71,0.00016438,2]
[366053243,1750036248795,-1541.73,0.00016438,2]
[366053244,1750036248804,-490.0,0.00016438,2]
[366053245,1750036248816,-720.71,0.00016438,2]
[366053246,1750036248826,-490.0,0.00016438,2]
[366053247,1750036248838,-1237.91,0.00016438,2]
[366053248,1750036248848,-1573.98,0.00016438,2]
[366053249,1750036248859,-608.52,0.00016438,2]
[366053250,1750036248869,-490.0,0.00016438,2]
[366053251,1750036248878,-8093.58,0.00016438,2]
[366053252,1750036248888,-2460.72,0.00016438,2]
[366053253,1750036248899,-490.0,0.00016438,2]
[366053254,1750036248910,-490.0,0.00016438,2]
[366053255,1750036248919,-3604.78,0.00016438,2]
[366053256,1750036248930,-490.0,0.00016438,2]
[366053257,1750036248941,-490.0,0.00016438,2]
[366053258,1750036248951,-490.0,0.00016438,2]
[366053259,1750036248962,-2084.46,0.00016438,2]
[366053260,1750036248972,-480.0,0.00016438,2]
[366053261,1750036248982,-490.0,0.00016438,2]
[366053262,1750036248992,-460.0,0.00016438,2]
[366053263,1750036249002,-950.09,0.00016438,2]
[366053264,1750036249012,-910.08,0.00016438,2]
[366053265,1750036249022,-1155.27,0.00016438,2]
[366053266,1750036249033,-490.0,0.00016438,2]
[366053267,1750036249043,-642.78,0.00016438,2]
[366053268,1750036249052,-490.0,0.00016438,2]
[366053269,1750036249062,-490.0,0.00016438,2]
[366053270,1750036249072,-2130.33,0.00016438,2]
[366053271,1750036249082,-490.0,0.00016438,2]
[366053272,1750036249092,-569.69,0.00016438,2]
[366053273,1750036249102,-490.0,0.00016438,2]
[366053274,1750036249111,-490.0,0.00016438,2]
[366053275,1750036249121,-490.0,0.00016438,2]
[366053276,1750036249131,-490.0,0.00016438,2]
[366053277,1750036249140,-460.0,0.00016438,2]
[366053278,1750036249150,-9811.76,0.00016438,2]
[366053279,1750036249159,-490.0,0.00016438,2]
[366053280,1750036249169,-490.0,0.00016438,2]
[366053281,1750036249179,-490.0,0.00016438,2]
[366053282,1750036249189,-490.0,0.00016438,2]
[366053283,1750036249198,-3624.75,0.00016438,2]
[366053284,1750036249207,-3498.5,0.00016438,2]
[366053285,1750036249217,-490.0,0.00016438,2]
[366053286,1750036249227,-576.44,0.00016438,2]
[366053287,1750036249236,-490.0,0.00016438,2]
[366053288,1750036249246,-3934.07,0.00016438,2]
[366053289,1750036249256,-467.12578046,0.00016438,2]
[366053290,1750036249265,-1547.35,0.00016438,2]
[366053291,1750036249276,-490.0,0.00016438,2]
[366053292,1750036249286,-490.0,0.00016438,2]
[366053293,1750036249295,-2612.76,0.00016438,2]
[366053294,1750036249306,-2304.41,0.00016438,2]